bitfinex-derivatives/quotes_BTCF0:USTF0_20251120
["timestamp","ask_amount","ask_price","bid_price","bid_amount"]
[1763661672393,0.00017236,87042.0,87041.0,0.00219803]
[1763661672795,0.00017236,87042.0,87028.0,0.001]
[1763661672796,0.1981229,87030.0,87029.0,0.001]
[1763661672983,0.14244,87030.0,87029.0,0.00319803]
[1763661673185,0.14858822,87040.0,87029.0,0.00319803]
[1763661673385,0.06876,87039.0,87038.0,0.0115018]
[1763661673587,0.06876,87039.0,87038.0,0.01369983]
[1763661673792,0.00017236,87042.0,87038.0,0.00219803]
[1763661674192,0.00017236,87042.0,87039.0,0.0115017]
[1763661674491,0.00117236,87042.0,87041.0,0.07230803]
[1763661674692,0.00117236,87042.0,87041.0,0.14255803]
[1763661675684,0.00017236,87042.0,87041.0,0.14255803]
[1763661675895,0.00117236,87042.0,87041.0,0.14255803]
[1763661676087,0.06159898,87067.0,87041.0,0.40219803]
[1763661676290,0.06159898,87075.0,87063.0,0.0114984]
[1763661676590,0.14244,87065.0,87064.0,0.00219803]
[1763661676796,0.0115002,87051.0,87021.0,0.011504]
[1763661676994,0.04418,87066.0,87051.0,0.0115001]
[1763661677291,0.0114985,87064.0,87053.0,0.0114998]
[1763661677483,0.00017236,87067.0,87065.0,0.0114983]
[1763661677686,0.00017236,87067.0,87066.0,0.00219803]
[1763661678083,0.00017236,87067.0,87066.0,0.14255803]
[1763661678897,0.00017236,87067.0,87066.0,0.00219803]
[1763661679087,0.00017236,87067.0,87066.0,0.07230803]
[1763661679289,0.00017236,87067.0,87066.0,0.14255803]
[1763661680796,0.04103178,87089.0,87068.0,0.0114978]
[1763661681000,0.04103178,87090.0,87089.0,0.1518551]
[1763661681187,0.09320297,87097.0,87096.0,0.14036]
[1763661681389,0.08223376,87127.0,87096.0,0.14036]
[1763661681390,0.04103178,87118.0,87096.0,0.00219803]
[1763661681596,0.04103178,87127.0,87126.0,0.1518502]
[1763661681894,0.00011321,87135.0,87134.0,0.1518492]
[1763661682100,0.00011321,87135.0,87134.0,0.15404723]
[1763661682292,0.09062154,87157.0,87147.0,0.14036]
[1763661682496,0.09062154,87157.0,87125.0,0.26077159]
[1763661682497,0.09062154,87157.0,87156.0,0.07230803]
[1763661682799,0.04103178,87175.0,87165.0,0.011485]
[1763661683097,0.14244,87167.0,87166.0,0.00219803]
[1763661683397,0.14244,87159.0,87158.0,0.00017213]
[1763661683785,0.0114861,87158.0,87147.0,0.06212]
[1763661683995,0.0114859,87159.0,87148.0,0.0114873]
[1763661684198,0.14244,87150.0,87149.0,0.00219803]
[1763661684387,0.14244,87148.0,87147.0,0.06212]
[1763661684587,0.0114903,87126.0,87109.0,0.0114924]
[1763661684785,0.24928129,87130.0,87109.0,0.00219803]
[1763661684992,0.14244,87110.0,87109.0,0.00237016]
[1763661685198,0.14244,87110.0,87109.0,0.00017213]
[1763661685595,0.04103178,87124.0,87109.0,0.00017213]
[1763661685596,0.04103178,87125.0,87109.0,0.00219803]
[1763661685792,0.01858147,87125.0,87109.0,0.01369043]
[1763661686095,0.0556711,87120.0,87109.0,0.00219803]
[1763661686299,0.14244,87110.0,87109.0,0.00219803]
[1763661687093,0.06876,87110.0,87109.0,0.00219803]
[1763661687300,0.0114906,87124.0,87110.0,0.0114923]
[1763661687498,0.04103178,87125.0,87116.0,0.0114914]
[1763661687695,0.06876,87125.0,87124.0,0.00219803]
[1763661688392,0.01899057,87126.0,87108.0,8.531e-05]
[1763661688592,0.0114911,87120.0,87109.0,0.00219803]
[1763661688902,0.01899057,87126.0,87109.0,0.00219803]
[1763661689496,0.00017213,87126.0,87125.0,0.14036]
[1763661689704,0.00017213,87126.0,87125.0,0.14255803]
[1763661689886,0.0114881,87143.0,87125.0,0.14255803]
[1763661689887,0.13607,87136.0,87125.0,0.00219803]
[1763661690293,0.13571,87126.0,87125.0,0.00219803]
[1763661690490,0.03845,87134.0,87108.0,8.531e-05]
[1763661690491,0.13571,87109.0,87108.0,8.531e-05]
[1763661690695,0.0114898,87129.0,87113.0,0.0114919]
[1763661690901,0.0114904,87125.0,87114.0,0.00219803]
[1763661691208,0.04103178,87127.0,87114.0,0.00219803]
[1763661691502,0.0114907,87123.0,87114.0,0.00219803]
[1763661691696,0.0114907,87123.0,87115.0,0.0114917]
[1763661691897,0.04103178,87129.0,87124.0,0.0114904]
[1763661692092,0.00017213,87130.0,87129.0,0.12973]
[1763661692299,0.04103178,87150.0,87129.0,0.00219803]
[1763661692502,0.0114882,87142.0,87129.0,0.00219803]
[1763661692693,0.04103178,87146.0,87129.0,0.00219803]
[1763661692892,0.0182341,87150.0,87147.0,0.0114875]
[1763661693093,0.04103178,87164.0,87149.0,0.00219803]
[1763661693403,0.04103178,87177.0,87162.0,0.0114854]
[1763661693598,0.04103178,87180.0,87163.0,0.00219803]
[1763661693799,0.0114859,87159.0,87148.0,0.01165943]
[1763661693997,0.001,87150.0,87149.0,0.00219803]
[1763661694192,0.12931,87150.0,87149.0,0.00219803]
[1763661694402,0.12831,87149.0,87148.0,0.00017213]
[1763661694617,0.001,87150.0,87118.0,0.0114912]
[1763661694907,0.1397972,87149.0,87131.0,0.00219803]
[1763661695106,0.12831,87149.0,87131.0,0.00219803]
[1763661695294,0.12831,87149.0,87135.0,0.011489]
[1763661695492,0.12831,87149.0,87137.0,0.0114887]
[1763661695700,0.001,87150.0,87149.0,0.0114872]
[1763661695904,0.001,87150.0,87108.0,8.531e-05]
[1763661695905,0.12831,87109.0,87108.0,8.531e-05]
[1763661696110,0.00219803,87109.0,87108.0,0.00081798]
[1763661697004,0.00219803,87109.0,87043.0,0.04104609]
[1763661697005,0.1398035,87101.0,87100.0,2.13e-06]
[1763661697202,0.12831,87086.0,87085.0,0.0114956]
[1763661697403,0.13050803,87086.0,87075.0,0.00073267]
[1763661697910,8.531e-05,87085.0,87081.0,0.011496]
[1763661698104,0.06801803,87082.0,87081.0,0.011496]
[1763661698412,0.06801803,87082.0,87081.0,0.01222867]
[1763661698604,0.06801803,87082.0,87081.0,0.00073267]
[1763661698907,0.13050803,87082.0,87081.0,0.00073267]
[1763661699100,0.06582,87075.0,87074.0,0.01166924]
[1763661699403,0.13059321,87075.0,87074.0,0.01240191]
[1763661699611,0.00228321,87075.0,87074.0,0.01240191]
[1763661700307,0.00228321,87075.0,87074.0,0.08046191]
[1763661700608,0.00228321,87075.0,87074.0,0.01240191]
[1763661700817,0.13059321,87075.0,87074.0,0.00090491]
[1763661701306,0.13059321,87075.0,87074.0,0.00017224]
[1763661701500,0.13059321,87075.0,87033.0,0.0575126]
[1763661701501,0.139808,87067.0,87020.0,0.03778]
[1763661701703,0.03935,87066.0,87059.0,0.011499]
[1763661701905,0.00219803,87060.0,87059.0,0.01223167]
[1763661702615,8.531e-05,87067.0,87066.0,0.0114981]
[1763661702821,0.00228334,87067.0,87066.0,0.01323077]
[1763661703611,0.00228334,87067.0,87066.0,0.01223077]
[1763661704209,0.12831,87061.0,87060.0,0.0114988]
[1763661704401,0.00219803,87061.0,87060.0,0.01223147]
[1763661704599,0.00219803,87061.0,87060.0,0.00073267]
[1763661704806,0.1398089,87060.0,87059.0,0.001]
[1763661705108,0.14200693,87060.0,87059.0,0.001]
[1763661705409,0.13050803,87060.0,87059.0,0.001]
[1763661705607,0.12831,87052.0,87051.0,0.00017224]
[1763661705816,0.13050803,87052.0,87051.0,0.00090491]
[1763661706708,0.00219803,87052.0,87051.0,0.00090491]
[1763661707718,0.13050803,87052.0,87051.0,0.00090491]
[1763661708413,0.00219803,87052.0,87051.0,0.00090491]
[1763661708612,0.13059334,87052.0,87051.0,0.00017224]
[1763661709113,0.13059334,87052.0,87051.0,0.00190491]
[1763661709307,0.00228334,87052.0,87051.0,0.13489491]
[1763661709506,0.00228334,87052.0,87051.0,0.06996491]
[1763661709908,8.531e-05,87052.0,87051.0,0.13389491]
[1763661710115,0.01739259,87068.0,87051.0,0.00090491]
[1763661710412,0.12831,87063.0,87051.0,0.00090491]
[1763661710613,0.13050803,87052.0,87051.0,0.00090491]
[1763661710813,0.13050803,87052.0,87051.0,0.00190491]
[1763661711406,0.06582,87034.0,87003.0,0.0492864]
[1763661711603,0.03935,87048.0,87027.0,0.00073267]
[1763661711604,0.03935,87030.0,87027.0,0.00073267]
[1763661711810,0.13050803,87028.0,87027.0,0.00073267]
[1763661712509,0.00219803,87028.0,87027.0,0.00073267]
[1763661712905,0.00017235,87036.0,87035.0,0.0115022]
[1763661713111,0.13068038,87036.0,87035.0,0.01223487]
[1763661713311,0.00237038,87036.0,87035.0,0.01223487]
[1763661713507,0.13068038,87036.0,87035.0,0.00073267]
[1763661714819,0.13068038,87036.0,87035.0,0.13372267]
[1763661714820,0.00237038,87036.0,87035.0,0.13372267]
[1763661715204,0.00237038,87036.0,87035.0,0.00073267]
[1763661716609,0.00237038,87036.0,87035.0,0.13372267]
[1763661716610,0.00017235,87036.0,87035.0,0.13372267]
[1763661716813,0.09047833,87056.0,87035.0,0.00073267]
[1763661717017,0.09047833,87056.0,87055.0,0.0795596]
[1763661717312,0.09047833,87056.0,87055.0,0.14522227]
[1763661717623,0.09267636,87056.0,87055.0,0.14522227]
[1763661717918,0.12831,87068.0,87067.0,0.011498]
[1763661718121,0.13050803,87068.0,87047.0,0.00017235]
[1763661718315,0.0114988,87062.0,87057.0,0.0114993]
[1763661718507,0.12831,87059.0,87058.0,0.00073267]
[1763661718713,0.13050803,87059.0,87058.0,0.00073267]
[1763661719919,0.00219803,87059.0,87058.0,0.00073267]
[1763661720321,0.1398104,87050.0,87049.0,0.0115003]
[1763661720512,0.1398104,87050.0,87047.0,0.00017235]
[1763661720513,0.16766,87048.0,87047.0,0.00017235]
[1763661720710,0.16766,87048.0,87027.0,0.025]
[1763661720711,0.1398132,87028.0,87027.0,0.025]
[1763661720909,0.12831,87010.0,86989.0,0.0115083]
[1763661721115,0.14201363,87010.0,87001.0,0.0115066]
[1763661721321,0.14201363,87010.0,87002.0,0.00073267]
[1763661721322,0.12831,87003.0,87002.0,0.00073267]
[1763661721511,0.00219803,87003.0,87002.0,0.13372267]
[1763661721717,0.06582,87021.0,87020.0,0.0115041]
[1763661722024,0.06582,87021.0,87020.0,0.01223677]
[1763661722025,0.1305963,87021.0,87020.0,0.01223677]
[1763661722221,0.12113,87013.0,87012.0,0.00017235]
[1763661722420,0.05815,87006.0,86983.0,0.11292]
[1763661722729,0.0022963,87005.0,87004.0,0.0115063]
[1763661722916,0.12113,87029.0,87028.0,0.0115031]
[1763661723110,0.12332803,87029.0,87028.0,0.01223577]
[1763661723320,0.12332803,87029.0,87028.0,0.07111577]
[1763661723321,0.00219803,87029.0,87028.0,0.07111577]
[1763661723513,5e-08,87037.0,87036.0,0.1350721]
[1763661723715,0.06159898,87068.0,87036.0,0.1350721]
[1763661723716,0.00219803,87065.0,87062.0,0.0114987]
[1763661723916,0.00219803,87065.0,87064.0,0.05888]
[1763661724120,0.12332803,87065.0,87064.0,0.00073267]
[1763661724325,0.048209,87060.0,87028.0,0.04728]
[1763661724516,0.04100289,87054.0,87053.0,0.0114997]
[1763661724825,0.00219803,87054.0,87053.0,0.13580237]
[1763661725228,0.00219803,87054.0,87053.0,0.01223237]
[1763661725418,0.0115008,87046.0,87035.0,0.00017235]
[1763661725614,0.03671,87060.0,87035.0,0.00017235]
[1763661725615,0.04110038,87042.0,87041.0,0.0115014]
[1763661725822,0.00219803,87042.0,87041.0,0.01223407]
[1763661726020,0.06165058,87048.0,87045.0,0.0115009]
[1763661726221,0.0616252,87048.0,87046.0,0.00073267]
[1763661726424,0.01673928,87073.0,87035.0,0.00017235]
[1763661726425,0.12113,87036.0,87035.0,0.00017235]
[1763661726722,0.12332803,87036.0,87035.0,0.00017235]
[1763661727127,0.00219803,87036.0,87035.0,0.00090502]
[1763661727424,0.12332803,87036.0,87035.0,0.00017235]
[1763661727619,0.08443179,87036.0,87022.0,0.0115039]
[1763661727820,0.08443179,87036.0,87019.0,0.00073267]
[1763661727821,0.06174115,87026.0,87019.0,0.00073267]
[1763661728020,0.00219803,87020.0,87019.0,0.00073267]
[1763661728222,0.06174115,87023.0,87020.0,0.0115042]
[1763661728421,0.06174115,87023.0,87022.0,0.00073267]
[1763661728623,0.08223376,87030.0,87029.0,0.011503]
[1763661728819,0.00219803,87030.0,87029.0,0.01223567]
[1763661729426,0.06176472,87031.0,87030.0,0.12357]
[1763661729629,0.06176472,87036.0,87034.0,0.12357]
[1763661729926,0.14390908,87060.0,87030.0,0.40073267]
[1763661729927,0.08223376,87062.0,87058.0,0.12357]
[1763661730124,0.00219803,87061.0,87059.0,0.01223177]
[1763661730620,0.08223376,87067.0,87063.0,0.0114985]
[1763661730821,0.08223376,87067.0,87052.0,0.0114999]
[1763661730822,0.08223376,87069.0,87067.0,0.011498]
[1763661731022,0.08223376,87069.0,87068.0,0.00073267]
[1763661731228,0.20556179,87069.0,87068.0,0.01223057]
[1763661731528,0.00219803,87069.0,87068.0,0.01223057]
[1763661732523,0.00017235,87074.0,87073.0,0.1350672]
[1763661732723,0.00017235,87074.0,87073.0,0.13579987]
[1763661732924,0.00237038,87074.0,87073.0,0.01222987]
[1763661733428,0.00237038,87074.0,87073.0,0.13579987]
[1763661733628,0.00237038,87074.0,87073.0,0.01222987]
[1763661733828,0.00237038,87074.0,87073.0,0.00073267]
[1763661734428,0.0114977,87070.0,87056.0,0.00017235]
[1763661734730,0.00219803,87069.0,87068.0,0.0703779]
[1763661734923,0.00219803,87069.0,87068.0,0.07111057]
[1763661735720,0.00017235,87074.0,87068.0,0.07111057]
[1763661735721,0.00017235,87074.0,87073.0,0.0114972]
[1763661735920,0.00237038,87074.0,87073.0,0.00073267]
[1763661736122,0.0114976,87071.0,87056.0,0.00017235]
[1763661736432,0.06034803,87070.0,87057.0,0.00073267]
[1763661736633,0.06034803,87070.0,87064.0,0.0114983]
[1763661736634,0.011498,87067.0,87064.0,0.0114983]
[1763661736828,0.04134377,87074.0,87073.0,0.0114972]
[1763661737028,0.00237038,87074.0,87073.0,0.13579987]
[1763661737821,0.00017235,87074.0,87073.0,0.13579987]
[1763661738025,0.04117142,87091.0,87088.0,0.0114952]
[1763661738324,0.12113,87090.0,87089.0,0.00073267]
[1763661738532,0.1326266,87078.0,87077.0,0.0114967]
[1763661738726,0.13482463,87078.0,87077.0,0.00073267]
[1763661738931,0.12332803,87078.0,87077.0,0.01222937]
[1763661739134,0.00219803,87078.0,87077.0,0.01222937]
[1763661739833,0.00219803,87078.0,87077.0,0.00073267]
[1763661740331,0.001,87078.0,87077.0,0.12430267]
[1763661740636,0.00017225,87086.0,87085.0,0.1350656]
[1763661740833,0.00017225,87086.0,87085.0,0.13579827]
[1763661741524,0.04112718,87102.0,87100.0,0.0114935]
[1763661741721,0.00219803,87102.0,87101.0,0.05961267]
[1763661741932,0.00219803,87102.0,87101.0,0.00073267]
[1763661742727,0.04112718,87108.0,87101.0,0.00073267]
[1763661742728,0.04129943,87110.0,87108.0,0.0114926]
[1763661742933,0.00017225,87110.0,87109.0,0.12430267]
[1763661743438,0.04112718,87132.0,87128.0,0.01149]
[1763661743634,0.04112718,87130.0,87129.0,0.00073267]
[1763661743831,0.13481773,87130.0,87129.0,0.00073267]
[1763661744038,0.19316096,87130.0,87129.0,0.00073267]
[1763661744339,0.00219803,87130.0,87129.0,0.00073267]
[1763661745034,0.13481773,87130.0,87129.0,0.00073267]
[1763661745641,0.07746496,87130.0,87129.0,0.00073267]
[1763661745848,0.00219803,87130.0,87129.0,0.05961267]
[1763661746142,0.01701078,87137.0,87136.0,0.0114889]
[1763661746327,0.01920881,87137.0,87136.0,0.01222157]
[1763661746743,0.00219803,87137.0,87136.0,0.00073267]
[1763661746938,0.00017215,87138.0,87137.0,0.1350588]
[1763661747133,0.01687135,87152.0,87137.0,0.00073267]
[1763661747337,0.00219803,87151.0,87137.0,0.00073267]
[1763661747638,0.0114842,87172.0,87137.0,0.00073267]
[1763661747639,0.05815,87168.0,87167.0,0.0114848]
[1763661747839,0.00219803,87168.0,87167.0,0.00073267]
[1763661748144,0.08239794,87194.0,87167.0,0.40073267]
[1763661748329,0.01932784,87194.0,87170.0,0.36031648]
[1763661748640,0.01932784,87194.0,87193.0,0.00073267]
[1763661748641,0.00219803,87194.0,87193.0,0.00073267]
[1763661749232,0.01931757,87194.0,87193.0,0.00073267]
[1763661749431,0.00219803,87194.0,87193.0,0.05961267]
[1763661749631,0.01703268,87199.0,87194.0,0.0114812]
[1763661749941,0.01703268,87199.0,87198.0,0.00073267]
[1763661749942,0.01367863,87199.0,87198.0,0.00073267]
[1763661750240,0.00219803,87199.0,87198.0,0.00073267]
[1763661750732,0.0193111,87199.0,87198.0,0.00073267]
[1763661750927,0.11184,87186.0,87185.0,0.00017205]
[1763661751238,0.11184,87186.0,87174.0,0.1243238]
[1763661751239,0.1233238,87175.0,87174.0,0.11284]
[1763661751538,0.1233238,87175.0,87134.0,0.03487]
[1763661751539,0.0114839,87174.0,87159.0,0.0114858]
[1763661751734,0.00219803,87173.0,87164.0,0.0114851]
[1763661751941,0.00219803,87173.0,87172.0,0.00073267]
[1763661752537,0.00017205,87181.0,87180.0,0.0114831]
[1763661752736,0.00237008,87181.0,87180.0,0.11796267]
[1763661752936,0.001,87194.0,87180.0,0.15219267]
[1763661753135,0.00319803,87194.0,87180.0,0.03496267]
[1763661753430,0.00319803,87194.0,87191.0,0.0114816]
[1763661753638,0.00219803,87194.0,87193.0,0.00073267]
[1763661754034,0.12651933,87194.0,87193.0,0.00073267]
[1763661754235,0.00219803,87194.0,87193.0,0.00073267]
[1763661754532,0.00219803,87194.0,87193.0,0.06305267]
[1763661754736,0.001,87194.0,87193.0,0.12944407]
[1763661754935,0.00319803,87194.0,87193.0,0.12944407]
[1763661755438,0.00017163,87202.0,87193.0,0.00073267]
[1763661755632,0.00319803,87194.0,87193.0,0.00073267]
[1763661755837,0.00419803,87194.0,87193.0,0.00073267]
[1763661756035,0.06117803,87194.0,87193.0,0.00073267]
[1763661756233,0.11703803,87194.0,87193.0,0.00073267]
[1763661756631,0.00419803,87194.0,87193.0,0.01221407]
[1763661756831,0.002,87194.0,87193.0,0.12944407]
[1763661757133,0.001,87194.0,87193.0,0.00073267]
[1763661757337,0.001,87194.0,87193.0,0.12944407]
[1763661757839,0.00419803,87194.0,87193.0,0.00073267]
[1763661758042,0.01567933,87194.0,87193.0,0.00073267]
[1763661758240,0.12851933,87194.0,87193.0,0.00073267]
[1763661758842,0.0684623,87186.0,87185.0,0.00017205]
[1763661759048,0.12652033,87186.0,87185.0,0.00017205]
[1763661759649,0.12652033,87186.0,87185.0,0.00090472]
[1763661759843,0.00219803,87186.0,87185.0,0.00090472]
[1763661760744,0.05917803,87186.0,87185.0,0.00090472]
[1763661760944,0.00219803,87186.0,87185.0,0.00090472]
[1763661761341,0.00219803,87186.0,87185.0,0.11813472]
[1763661761545,0.001,87194.0,87193.0,0.1287114]
[1763661761842,0.00219803,87194.0,87193.0,0.00073267]
[1763661762242,0.00017163,87202.0,87193.0,0.11796267]
[1763661762440,0.00236966,87202.0,87201.0,0.0114803]
[1763661762646,0.01384986,87202.0,87201.0,0.00073267]
[1763661762840,0.1243223,87186.0,87185.0,0.00017205]
[1763661763041,0.11503803,87186.0,87185.0,0.00017205]
[1763661763346,0.05917803,87186.0,87185.0,0.00017205]
[1763661763649,0.00219803,87186.0,87185.0,0.00017205]
[1763661763950,0.11503803,87186.0,87185.0,0.00017205]
[1763661764143,0.00219803,87186.0,87170.0,0.0114843]
[1763661764453,0.00319803,87186.0,87165.0,1.5]
[1763661764841,0.0114833,87179.0,87165.0,1.5]
[1763661765046,0.11284,87177.0,87176.0,0.0114836]
[1763661765356,0.05917803,87177.0,87176.0,0.0114836]
[1763661765544,0.05917803,87177.0,87165.0,1.5]
[1763661765751,0.011484,87174.0,87170.0,0.0114843]
[1763661765946,0.011484,87174.0,87165.0,1.5]
[1763661765947,0.11284,87166.0,87165.0,1.5]
[1763661766151,0.11503803,87166.0,87165.0,0.001]
[1763661766455,0.11503803,87166.0,87163.0,0.00017205]
[1763661766456,0.11284,87164.0,87163.0,2.05e-06]
[1763661766647,0.11503803,87164.0,87163.0,2.05e-06]
[1763661766845,0.11503803,87164.0,87110.0,0.14823798]
[1763661766846,0.03354,87159.0,87110.0,0.14823798]
[1763661767157,0.05698,87127.0,87111.0,1.5]
[1763661767343,0.05917803,87126.0,87125.0,0.0114903]
[1763661767655,0.00219803,87126.0,87125.0,0.0114903]
[1763661768047,0.00219803,87126.0,87117.0,0.00017215]
[1763661768048,0.11284,87118.0,87117.0,0.00017215]
[1763661768247,0.11503803,87118.0,87117.0,0.00017215]
[1763661768445,0.51503803,87118.0,87073.0,0.09093886]
[1763661768653,0.11284,87090.0,87074.0,0.14683]
[1763661768951,0.11503803,87090.0,87074.0,0.1126]
[1763661769154,0.12653303,87090.0,87074.0,0.124097]
[1763661769349,0.12653303,87090.0,87089.0,2.87e-06]
[1763661769551,0.12653303,87090.0,87074.0,0.1126]
[1763661769552,0.124337,87075.0,87074.0,0.1126]
[1763661769750,0.11503803,87075.0,87066.0,0.00017225]
[1763661769951,0.11284,87074.0,87073.0,0.0114971]
[1763661770154,0.00219803,87074.0,87073.0,0.0114971]
[1763661770456,0.01802218,87074.0,87066.0,0.00017225]
[1763661770646,0.00229746,87074.0,87066.0,0.01167025]
[1763661770843,0.11284,87067.0,87066.0,0.00017225]
[1763661771055,0.11513816,87067.0,87030.0,0.03423]
[1763661771357,0.00229816,87067.0,87052.0,0.0115]
[1763661771550,0.00229816,87067.0,87058.0,0.0114992]
[1763661771750,0.00229816,87067.0,87055.0,0.0114995]
[1763661771950,0.00229816,87067.0,87066.0,0.001]
[1763661772549,0.00010013,87067.0,87066.0,0.11823]
[1763661773060,0.00017225,87075.0,87074.0,0.1287271]
[1763661774055,0.00241302,87075.0,87074.0,0.1287271]
[1763661774249,0.00021499,87075.0,87074.0,0.1287271]
[1763661774560,0.01610365,87090.0,87089.0,0.0114951]
[1763661774856,0.00219803,87090.0,87089.0,0.0114951]
[1763661775061,0.01583963,87103.0,87089.0,0.0114951]
[1763661775258,0.00219803,87102.0,87101.0,0.06232]
[1763661775458,0.00219803,87102.0,87101.0,0.1287235]
[1763661775758,0.00017225,87110.0,87109.0,0.0738125]
[1763661775957,0.00237028,87110.0,87093.0,0.00017225]
[1763661776160,0.0114925,87109.0,87093.0,0.00017225]
[1763661776359,0.00219803,87094.0,87093.0,0.01166685]
[1763661776662,0.001,87102.0,87093.0,0.01166685]
[1763661776663,0.001,87102.0,87101.0,0.0114935]
[1763661776861,0.001,87102.0,87101.0,0.1287235]
[1763661777054,0.00319803,87102.0,87101.0,0.1287235]
[1763661777250,0.00319803,87102.0,87101.0,0.0114935]
[1763661777758,0.00319803,87102.0,87101.0,0.11723]
[1763661777962,0.00319803,87102.0,87093.0,0.00017225]
[1763661778150,0.01469143,87102.0,87094.0,0.0114944]
[1763661778357,0.00319803,87102.0,87093.0,0.00017225]
[1763661779159,0.00219803,87102.0,87093.0,0.00017225]
[1763661779359,0.00219803,87102.0,87098.0,0.0114938]
[1763661779757,0.00219803,87102.0,87093.0,0.00017225]
[1763661779959,0.00219803,87102.0,87096.0,0.0114941]
[1763661780154,0.00219803,87102.0,87094.0,0.0114943]
[1763661780460,0.00219803,87102.0,87100.0,0.0114935]
[1763661780665,0.00219803,87102.0,87101.0,0.11723]
[1763661780964,0.0114936,87101.0,87093.0,0.00017225]
[1763661781152,0.00219803,87094.0,87093.0,0.00017225]
[1763661781460,0.00219803,87094.0,87093.0,0.11740225]
[1763661781859,0.00219803,87094.0,87093.0,0.00017225]
[1763661782058,0.00219803,87094.0,87093.0,0.11740225]
[1763661782764,0.00017225,87110.0,87106.0,0.0114927]
[1763661782960,0.00219803,87109.0,87102.0,0.0114933]
[1763661783163,0.00219803,87109.0,87093.0,0.00017225]
[1763661783367,0.011493,87105.0,87097.0,0.0114939]
[1763661783564,0.011493,87105.0,87093.0,0.00017225]
[1763661783565,0.00219803,87105.0,87096.0,0.03197]
[1763661783758,0.00017225,87110.0,87109.0,0.1244425]
[1763661784675,0.0114933,87103.0,87098.0,0.0114939]
[1763661784859,0.00237028,87110.0,87098.0,0.0114939]
[1763661784860,0.00219803,87099.0,87098.0,0.0114939]
[1763661785259,0.00017225,87110.0,87093.0,0.00017225]
[1763661785260,0.00017225,87110.0,87107.0,0.0114926]
[1763661785460,0.00219803,87108.0,87107.0,0.0114926]
[1763661785962,0.00017225,87110.0,87109.0,0.11295]
[1763661786163,0.01604302,87140.0,87117.0,0.0114914]
[1763661786365,0.03129,87138.0,87102.0,0.03197]
[1763661786665,0.03129,87138.0,87066.0,0.011498]
[1763661786666,0.00219803,87103.0,87066.0,0.011498]
[1763661786866,0.00219803,87103.0,87060.0,0.03423]
[1763661786867,0.0114945,87094.0,87062.0,0.0114987]
[1763661787164,0.00219803,87093.0,87069.0,0.00017225]
[1763661787359,0.0114963,87081.0,87069.0,0.00017225]
[1763661787563,0.00219803,87080.0,87069.0,0.00017225]
[1763661787762,0.00219803,87080.0,87079.0,0.11295]
[1763661788062,0.00017225,87087.0,87086.0,0.0114955]
[1763661788259,0.00237028,87087.0,87086.0,0.0657455]
[1763661788455,0.00237028,87087.0,87086.0,0.1244455]
[1763661788668,0.00017225,87087.0,87086.0,0.1244455]
[1763661788865,0.0114962,87082.0,87075.0,0.0114969]
[1763661789063,0.00219803,87076.0,87075.0,0.0114969]
[1763661789260,0.00219803,87076.0,87069.0,0.00017225]
[1763661789460,0.00219803,87076.0,87075.0,0.011497]
[1763661789658,0.00219803,87076.0,87069.0,0.00117225]
[1763661789659,0.011497,87075.0,87069.0,0.00117225]
[1763661789865,0.00219803,87070.0,87069.0,0.00117225]
[1763661790064,0.05429803,87070.0,87069.0,0.00117225]
[1763661790262,0.00219803,87070.0,87069.0,0.00017225]
[1763661790568,0.00219803,87070.0,87069.0,0.00117225]
[1763661790863,0.11368803,87070.0,87069.0,0.00117225]
[1763661791168,0.01369563,87070.0,87069.0,0.00117225]
[1763661791973,0.12518563,87070.0,87069.0,0.00117225]
[1763661792659,0.01369563,87070.0,87069.0,0.00117225]
[1763661792854,0.06579563,87070.0,87069.0,0.00117225]
[1763661793059,0.12518563,87070.0,87069.0,0.00117225]
[1763661793566,0.12518563,87070.0,87069.0,0.00017225]
[1763661793870,0.01369563,87070.0,87069.0,0.00017225]
[1763661794057,0.04078871,87085.0,87084.0,0.11295]
[1763661794256,0.00017225,87087.0,87086.0,0.11295]
[1763661794464,0.0565737,87110.0,87108.0,0.05425]
[1763661794767,0.04078871,87124.0,87118.0,0.05425]
[1763661794966,0.04078871,87131.0,87126.0,0.05425]
[1763661795155,0.00219803,87131.0,87120.0,0.14867543]
[1763661795355,0.01822563,87131.0,87100.0,0.14867543]
[1763661795569,0.01822563,87131.0,87117.0,0.00017214]
[1763661795570,0.0114913,87118.0,87117.0,0.00017214]
[1763661795765,0.06578933,87118.0,87117.0,0.00017214]
[1763661796172,0.12517933,87118.0,87117.0,0.00017214]
[1763661796761,0.01368933,87118.0,87117.0,0.00017214]
[1763661796962,0.01468933,87118.0,87117.0,0.00017214]
[1763661797472,0.00419803,87118.0,87117.0,0.11312214]
[1763661797675,0.00319803,87118.0,87117.0,0.00017214]
[1763661797868,0.11568803,87118.0,87117.0,0.00017214]
[1763661798466,0.17687109,87118.0,87117.0,0.00017214]
[1763661798663,0.0114934,87103.0,87093.0,0.0114945]
[1763661798871,0.00219803,87094.0,87093.0,0.1244445]
[1763661799066,0.04112748,87113.0,87109.0,0.0114924]
[1763661799261,0.06318306,87118.0,87116.0,0.1244415]
[1763661799262,0.04112748,87117.0,87116.0,0.1244415]
[1763661799462,0.00219803,87117.0,87116.0,0.1244415]
[1763661799968,0.00219803,87117.0,87116.0,0.11295]
[1763661800362,0.00219803,87117.0,87113.0,0.0114919]
[1763661800575,0.00219803,87117.0,87116.0,0.11295]
[1763661800775,0.00319803,87117.0,87116.0,0.11295]
[1763661801170,0.00419803,87117.0,87116.0,0.11295]
[1763661801369,0.002,87117.0,87116.0,0.11295]
[1763661801770,0.00017214,87125.0,87124.0,0.1244405]
[1763661801970,0.04112748,87142.0,87140.0,0.0657384]
[1763661802178,0.00219803,87141.0,87140.0,0.0657384]
[1763661802469,0.04112748,87147.0,87146.0,0.0114875]
[1763661802677,0.00219803,87147.0,87146.0,1.5114875]
[1763661803274,0.00017214,87155.0,87151.0,0.1244369]
[1763661803476,0.00017214,87155.0,87154.0,0.11295]
[1763661803780,0.0114865,87154.0,87150.0,0.0114871]
[1763661803983,0.001,87147.0,87146.0,1.5]
[1763661804179,0.00319803,87147.0,87146.0,1.5]
[1763661804678,0.11468803,87147.0,87146.0,1.5]
[1763661804885,0.0114912,87119.0,87112.0,0.011492]
[1763661805073,0.00219803,87113.0,87110.0,0.0114923]
[1763661805268,0.00219803,87113.0,87112.0,0.11295]
[1763661805575,0.00219803,87113.0,87106.0,0.11264]
[1763661805872,0.01795807,87113.0,87107.0,1.5]
[1763661806076,0.01795807,87113.0,87108.0,0.0114926]
[1763661806279,0.01795807,87113.0,87107.0,1.5]
[1763661806474,0.00219803,87113.0,87111.0,0.0114921]
[1763661806680,0.04105655,87117.0,87116.0,0.11295]
[1763661806879,0.00017214,87118.0,87117.0,0.1244414]
[1763661807081,0.04105655,87135.0,87131.0,0.0114896]
[1763661807283,0.1027922,87155.0,87131.0,0.0114896]